bitfinex-derivatives/quotes_SOLF0:USTF0_20241203
["timestamp","ask_amount","ask_price","bid_price","bid_amount"]
[1733214090519,12.27452016,227.78,227.63,12.27452016]
[1733214090714,12.27452016,227.78,227.64,1.09877441]
[1733214090715,2.38,227.77,227.64,1.09877441]
[1733214091836,12.27452016,227.72,227.64,2.1958]
[1733214092284,12.27452016,227.72,227.61,2.7278]
[1733214092285,2.38,227.71,227.61,2.7278]
[1733214092309,2.38,227.71,227.62,1.09896248]
[1733214092318,2.38,227.71,227.61,2.7278]
[1733214092339,2.38,227.71,227.61,1.3371]
[1733214095094,21.95706985,227.71,227.56,49.79563763]
[1733214095121,21.95706985,227.71,227.57,2.85758879]
[1733214095126,2.1954,227.69,227.6,2.1962]
[1733214095135,21.95706985,227.71,227.56,49.79563763]
[1733214095144,21.95706985,227.71,227.57,1.09918549]
[1733214095153,21.95706985,227.71,227.58,1.09918549]
[1733214095162,2.38,227.71,227.59,2.85780225]
[1733214095169,2.38,227.71,227.6,2.85780225]
[1733214095180,2.38,227.71,227.61,2.85780225]
[1733214095187,2.38,227.71,227.62,1.09918549]
[1733214095211,2.38,227.71,227.63,1.09918549]
[1733214095226,2.38,227.71,227.58,2.38]
[1733214095304,2.38,227.71,227.59,5.05548355]
[1733214095420,2.38,227.71,227.6,2.85744722]
[1733214095621,2.38,227.71,227.61,2.85744722]
[1733214095923,2.38,227.71,227.62,1.09901816]
[1733214096113,2.38,227.71,227.63,1.09901816]
[1733214096314,2.38,227.71,227.56,19.57706985]
[1733214096511,2.38,227.71,227.62,2.196]
[1733214098116,2.38,227.71,227.63,2.1959]
[1733214098148,2.38,227.71,227.61,2.1961]
[1733214098163,2.38,227.71,227.54,2.56312183]
[1733214098214,2.38,227.71,227.55,8.4250232]
[1733214098412,21.95706985,227.71,227.56,8.24190137]
[1733214100986,21.95706985,227.71,227.57,5.05644558]
[1733214101001,21.95706985,227.71,227.58,5.05644558]
[1733214101008,2.1953,227.7,227.61,2.1961]
[1733214101017,2.1953,227.7,227.62,1.0992273]
[1733214101041,2.1953,227.7,227.61,2.1961]
[1733214101046,2.1953,227.7,227.55,0.18408107]
[1733214101055,21.95706985,227.71,227.56,8.24832375]
[1733214101065,21.95706985,227.71,227.64,2.1958]
[1733214101070,2.38,227.71,227.56,0.18408107]
[1733214101076,2.38,227.71,227.57,8.24922011]
[1733214101095,2.38,227.71,227.58,8.24922011]
[1733214101100,2.38,227.71,227.59,5.05617998]
[1733214101117,2.38,227.71,227.6,5.05617998]
[1733214101424,2.38,227.71,227.64,2.1959]
[1733214101425,2.36,227.71,227.64,2.1959]
[1733214101621,2.36,227.71,227.65,2.85784086]
[1733214101816,2.36,227.71,227.66,1.09916956]
[1733214102020,2.36,227.71,227.6,0.18408107]
[1733214102021,2.36,227.71,227.67,1.09916956]
[1733214102226,2.36,227.71,227.68,1.09916956]
[1733214102427,2.36,227.71,227.61,0.18408107]
[1733214102627,2.36,227.71,227.68,2.1954]
[1733214102829,2.36,227.71,227.61,0.18408107]
[1733214104042,2.36,227.71,227.62,7.15290992]
[1733214104475,2.36,227.71,227.63,8.25191481]
[1733214104585,2.36,227.71,227.64,5.05542249]
[1733214104604,2.36,227.71,227.65,2.85741271]
[1733214104616,2.36,227.71,227.66,2.85741271]
[1733214104637,2.36,227.71,227.59,2.36]
[1733214104653,2.36,227.71,227.61,0.18465561]
[1733214104735,2.36,227.71,227.62,14.87480385]
[1733214104931,2.36,227.71,227.7,2.1953]
[1733214107680,2.36,227.71,227.7,3.29422513]
[1733214107732,2.36,227.71,227.7,3.29423394]
[1733214107749,2.36,227.71,227.7,5.05235782]
[1733214107756,2.36,227.75,227.72,2.195]
[1733214107775,2.36,227.75,227.64,0.18462755]
[1733214107776,2.36,227.75,227.65,0.18462755]
[1733214107839,2.36,227.75,227.66,5.05456197]
[1733214108028,2.36,227.75,227.67,2.85692633]
[1733214108232,2.36,227.75,227.72,2.1951]
[1733214108424,2.36,227.75,227.63,0.18462755]
[1733214108633,13.18,228.01,227.64,27.82829456]
[1733214108834,2.36,227.8,227.65,12.19255226]
[1733214109029,19.57706985,227.85,227.66,8.25122471]
[1733214109240,19.57706985,227.85,227.67,5.0546858]
[1733214109535,19.57706985,227.85,227.68,27.8268074]
[1733214109536,2.36,227.84,227.68,27.8268074]
[1733214109840,19.57706985,227.85,227.69,8.24973755]
[1733214109841,2.36,227.83,227.69,8.24973755]
[1733214110631,2.36,227.83,227.7,8.24973755]
[1733214111285,2.36,227.83,227.71,2.85699632]
[1733214111310,2.36,227.83,227.68,19.57706985]
[1733214111315,2.36,227.83,227.72,2.85626604]
[1733214111327,2.36,227.83,227.73,1.09856386]
[1733214111341,2.36,227.83,227.66,0.18426023]
[1733214111349,2.36,227.83,227.67,8.24781476]
[1733214111537,2.36,227.83,227.74,2.1949]
[1733214111538,1.3727,227.82,227.74,2.1949]
[1733214114165,1.2911,227.81,227.75,2.1948]
[1733214114194,1.2911,227.81,227.66,2.36]
[1733214114208,1.2911,227.81,227.76,2.1947]
[1733214114342,1.2911,227.81,227.77,2.1946]
[1733214115046,1.2911,227.81,227.78,2.1944]
[1733214115646,13.51807029,227.81,227.79,2.1944]
[1733214118701,13.51807029,227.81,227.66,14.58697029]
[1733214118722,13.51807029,227.81,227.8,2.1943]
[1733214118749,13.51807029,227.81,227.66,14.58697029]
[1733214118946,13.51807029,227.81,227.67,1.0987375]
[1733214118947,12.22697029,227.78,227.67,1.0987375]
[1733214121531,12.22697029,227.68,227.58,0.18450591]
[1733214121539,12.22697029,227.68,227.52,49.19383733]
[1733214121540,2.36,227.67,227.52,61.42080762]
[1733214121564,2.36,227.67,227.53,5.05615973]
[1733214121570,2.36,227.67,227.65,2.1958]
[1733214121578,2.36,227.67,227.52,61.42080762]
[1733214121588,2.36,227.67,227.53,5.05638046]
[1733214121594,2.36,227.67,227.64,2.1958]
[1733214121629,2.36,227.67,227.62,2.1959]
[1733214121738,3.6823,227.67,227.62,2.1959]
[1733214122043,3.6823,227.67,227.52,50.58713733]
[1733214122350,3.6823,227.67,227.53,22.44768029]
[1733214122544,2.36,227.66,227.57,2.1965]
[1733214122740,2.36,227.66,227.53,19.58927775]
[1733214122941,2.36,227.66,227.54,2.85796214]
[1733214123949,2.36,227.66,227.55,2.85796214]
[1733214124377,2.36,227.66,227.53,19.58927775]
[1733214124378,2.36,227.66,227.56,1.09921621]
[1733214124776,2.36,227.66,227.65,2.1958]
[1733214124880,2.36,227.66,227.53,19.58927775]
[1733214124901,2.36,227.66,227.54,2.85775293]
[1733214125144,2.36,227.66,227.55,1.75861719]
[1733214127928,2.36,227.66,227.56,1.09913574]
[1733214127934,2.36,227.66,227.57,1.09913574]
[1733214127941,2.36,227.66,227.53,21.94927775]
[1733214127948,2.36,227.66,227.54,2.85783298]
[1733214127974,2.36,227.66,227.64,2.1958]
[1733214127980,2.36,227.66,227.53,21.94927775]
[1733214127986,2.36,227.66,227.54,5.05634547]
[1733214127992,2.36,227.7,227.57,19.58927775]
[1733214127997,2.36,227.7,227.58,1.09922069]
[1733214128003,2.36,227.7,227.59,1.09922069]
[1733214128023,19.58927775,227.77,227.6,1.09922069]
[1733214128036,1.3966,227.79,227.73,2.195]
[1733214128149,2.36,227.76,227.73,2.195]
[1733214128345,2.36,227.76,227.65,2.7388]
[1733214128547,2.36,227.76,227.74,2.1949]
[1733214129148,2.36,227.76,227.72,2.195]
[1733214130338,2.36,227.76,227.65,2.7388]
[1733214130815,2.36,227.76,227.75,2.1948]
[1733214130850,19.58927775,227.85,227.66,2.36]
[1733214130851,2.36,227.8,227.66,2.36]
[1733214131053,2.36,227.8,227.67,2.49108751]
[1733214133603,19.58927775,227.85,227.78,2.1945]
[1733214133617,2.36,227.84,227.67,1.3924]
[1733214133644,2.36,227.83,227.68,2.85624398]
[1733214133652,2.36,227.83,227.67,1.3924]
[1733214133653,2.36,227.83,227.78,2.1944]
[1733214133693,2.36,227.83,227.79,2.1944]
[1733214133706,2.36,227.83,227.67,1.3924]
[1733214133717,2.36,227.83,227.68,2.85614992]
[1733214133748,2.36,227.83,227.69,1.0985192]
[1733214133755,2.36,227.83,227.67,1.3924]
[1733214133831,4.554,227.83,227.74,2.1948]
[1733214134052,4.554,227.83,227.67,1.3924]
[1733214134352,2.36,227.83,227.67,1.3924]
[1733214135971,2.36,227.83,227.68,1.09864244]
[1733214136237,2.36,227.83,227.67,1.3924]
[1733214136245,2.36,227.83,227.68,1.09864243]
[1733214136255,4.5541,227.83,227.71,2.1951]
[1733214136268,4.5541,227.83,227.67,1.3924]
[1733214136295,4.5541,227.83,227.74,2.1949]
[1733214136354,19.58927775,227.81,227.65,5.0988]
[1733214136559,19.58927775,227.81,227.66,1.09868848]
[1733214139346,19.58927775,227.81,227.65,2.7388]
[1733214139355,2.1944,227.79,227.69,2.1953]
[1733214139366,19.58927775,227.81,227.65,2.7388]
[1733214139400,21.78357775,227.81,227.73,2.1949]
[1733214139410,19.58927775,227.81,227.65,2.7388]
[1733214139426,19.58927775,227.81,227.73,2.1949]
[1733214139438,19.58927775,227.81,227.65,2.7388]
[1733214139463,21.78347775,227.81,227.73,2.1949]
[1733214139502,21.78347775,227.81,227.65,2.7388]
[1733214139565,19.58927775,227.81,227.65,2.7388]
[1733214140260,2.1943,227.8,227.72,2.1951]
[1733214140559,19.58927775,227.77,227.59,19.58927775]
[1733214140760,3.6916,227.76,227.59,19.58927775]
[1733214140950,2.1949,227.75,227.59,19.58927775]
[1733214141820,3.6916,227.76,227.59,19.58927775]
[1733214142610,2.1948,227.75,227.67,2.1955]
[1733214142646,19.58927775,227.73,227.67,2.1955]
[1733214142675,19.58927775,227.69,227.52,1.3587]
[1733214142759,3.7569,227.68,227.53,2.85776517]
[1733214145758,3.7569,227.68,227.59,2.1963]
[1733214145759,2.1957,227.66,227.59,2.1963]
[1733214145790,19.58927775,227.65,227.49,2.669]
[1733214145805,19.58927775,227.65,227.5,2.85819673]
[1733214145830,12.24888407,227.61,227.49,2.669]
[1733214145837,2.36,227.6,227.57,2.1965]
[1733214145860,2.36,227.6,227.56,2.1966]
[1733214145876,2.36,227.6,227.49,2.669]
[1733214145923,2.36,227.6,227.52,2.197]
[1733214145935,2.36,227.6,227.49,2.669]
[1733214146057,2.36,227.6,227.54,2.1968]
[1733214146464,2.36,227.6,227.55,2.1967]
[1733214147710,12.24888407,227.58,227.45,1.3205]
[1733214151200,12.24888407,227.58,227.51,2.197]
[1733214151220,12.24888407,227.58,227.45,1.3205]
[1733214151221,12.24888407,227.52,227.39,51.13257855]
[1733214151231,2.36,227.51,227.42,2.1979]
[1733214151238,12.24888407,227.46,227.31,62.09874673]
[1733214151244,2.36,227.45,227.32,8.2555552]
[1733214151251,2.36,227.45,227.4,2.1982]
[1733214151260,2.36,227.45,227.33,2.85976071]
[1733214151261,2.36,227.45,227.31,62.09874673]
[1733214151280,2.36,227.45,227.37,2.1984]
[1733214151395,2.36,227.45,227.31,12.24888407]
[1733214151768,2.36,227.45,227.3,2.6162]
[1733214152269,2.36,227.45,227.36,2.1985]
[1733214152468,2.36,227.45,227.3,2.6162]
[1733214153713,2.36,227.45,227.37,2.1985]
[1733214154437,2.36,227.45,227.3,2.6162]
[1733214154508,1.3134,227.51,227.3,2.6162]
[1733214154509,20.93773564,227.51,227.32,19.62433564]
[1733214154522,2.36,227.5,227.32,21.98433564]
[1733214154556,2.36,227.49,227.36,19.62433564]
[1733214157349,2.36,227.49,227.37,4.24718242]
[1733214157364,2.36,227.51,227.4,19.62433564]
[1733214157392,2.36,227.52,227.41,1.09982378]
[1733214157402,2.36,227.51,227.4,19.62433564]
[1733214157409,2.36,227.52,227.5,2.1972]
[1733214157417,1.2968,227.58,227.4,19.62433564]
[1733214157425,2.36,227.57,227.41,1.09982175]
[1733214157432,2.36,227.57,227.42,1.09982175]
[1733214157454,2.36,227.57,227.43,1.09982175]
[1733214157462,19.62433564,227.59,227.4,19.62433564]
[1733214157473,45.1958518,227.62,227.53,2.1969]
[1733214157477,45.1958518,227.62,227.41,2.85925494]
[1733214157478,2.36,227.61,227.44,19.62433564]
[1733214157483,2.36,227.61,227.44,21.98433564]
[1733214157613,2.36,227.61,227.45,1.09966484]
[1733214157774,2.36,227.61,227.44,21.98433564]
[1733214157969,2.36,227.61,227.45,1.0996613]
[1733214158174,2.36,227.61,227.44,21.98433564]
[1733214158375,2.36,227.61,227.45,1.09966189]
[1733214158712,2.36,227.61,227.44,21.98433564]
[1733214159506,2.36,227.61,227.45,2.85888349]
[1733214160044,2.36,227.61,227.55,2.1967]
[1733214160064,4.0016,227.69,227.48,19.62433564]
[1733214160065,19.62433564,227.67,227.48,19.62433564]
[1733214160078,2.36,227.66,227.49,1.09945743]
[1733214160090,19.62433564,227.67,227.59,2.1963]
[1733214160103,2.36,227.66,227.59,2.1963]
[1733214160374,2.36,227.66,227.6,2.1962]
[1733214162971,19.62433564,227.63,227.49,1.3464]
[1733214162977,19.62433564,227.63,227.5,1.09942483]
[1733214162988,19.62433564,227.63,227.49,1.3464]
[1733214163083,19.62433564,227.63,227.46,2.36]
[1733214163175,19.62433564,227.63,227.47,1.09957925]
[1733214163371,19.62433564,227.63,227.44,2.36]
[1733214163573,19.62433564,227.63,227.45,1.09965348]
[1733214163772,2.1961,227.62,227.46,1.09965348]
[1733214164077,19.62433564,227.63,227.44,2.36]
[1733214164298,19.62433564,227.63,227.55,2.1967]
[1733214166181,19.62433564,227.63,227.56,2.1966]
[1733214166278,19.62433564,227.63,227.57,2.1965]
[1733214169035,19.62433564,227.63,227.45,19.62433564]
[1733214169051,19.62433564,227.63,227.5,2.1972]
[1733214169059,19.62433564,227.63,227.45,19.62433564]
[1733214169067,19.62433564,227.63,227.44,2.36]
[1733214169115,19.62433564,227.63,227.55,2.1967]
[1733214169121,19.62433564,227.63,227.44,2.36]
[1733214169480,19.62433564,227.63,227.54,2.1968]
[1733214169676,21.82033564,227.63,227.54,2.1968]
[1733214170082,21.82033564,227.63,227.44,2.36]
[1733214170581,19.62433564,227.63,227.56,2.1966]
[1733214170977,19.62433564,227.63,227.45,19.62433564]
[1733214171376,19.62433564,227.67,227.45,19.62433564]
[1733214171686,2.36,227.66,227.45,19.62433564]
[1733214173034,2.36,227.66,227.58,2.1963]
[1733214173062,2.36,227.65,227.45,19.62433564]
[1733214173077,2.36,227.65,227.58,2.1963]
[1733214173085,2.36,227.65,227.45,19.62433564]
[1733214173092,2.36,227.65,227.61,2.1961]
[1733214173285,2.36,227.65,227.5,2.36]
[1733214175917,2.36,227.65,227.51,6.1657]
[1733214175928,2.36,227.65,227.52,12.24162156]
[1733214175937,2.36,227.65,227.62,2.196]
[1733214175988,2.36,227.65,227.52,12.24162156]
[1733214176032,2.36,227.65,227.51,6.1657]
[1733214176038,12.24162156,227.64,227.51,2.5356]
[1733214176381,12.24162156,227.64,227.57,2.1965]
[1733214176581,12.24162156,227.64,227.51,2.5356]
[1733214177083,12.24162156,227.64,227.58,2.1964]
[1733214177288,12.24162156,227.64,227.51,14.77722156]
[1733214177490,2.36,227.65,227.51,14.77722156]
[1733214177886,2.36,227.65,227.61,2.1961]
[1733214179250,2.36,227.65,227.54,12.24162156]
[1733214179483,2.36,227.65,227.57,12.24162156]
[1733214179550,2.36,227.68,227.57,12.24162156]
[1733214182418,2.36,227.68,227.65,2.1957]
[1733214182453,2.36,227.68,227.54,12.24162156]
[1733214182509,2.36,227.68,227.55,1.09925035]
[1733214182520,2.36,227.68,227.54,12.24162156]
[1733214182541,2.36,227.68,227.63,2.1959]
[1733214182574,2.36,227.68,227.54,12.24162156]
[1733214182578,2.36,227.68,227.55,1.09925623]
[1733214182655,12.24162156,227.67,227.56,1.09923826]
[1733214182794,12.24162156,227.64,227.51,14.77722156]
[1733214185575,12.24162156,227.67,227.52,1.09941065]
[1733214185616,12.24162156,227.67,227.53,1.09941065]
[1733214185633,12.24162156,227.67,227.54,1.09941065]
[1733214185680,12.24162156,227.67,227.51,14.77722156]
[1733214185731,3.6222,227.68,227.54,12.24162156]
[1733214185771,3.6222,227.68,227.55,1.0993592]
[1733214185806,12.24162156,227.67,227.56,1.0993592]
[1733214189023,12.24162156,227.67,227.54,12.24162156]
[1733214189037,12.24162156,227.67,227.51,2.5356]
[1733214189038,12.24162156,227.67,227.55,1.09935072]
[1733214189196,12.24162156,227.67,227.51,14.77722156]
[1733214189210,12.24162156,227.67,227.6,2.1962]
[1733214189237,12.24162156,227.67,227.61,2.1961]
[1733214189249,12.24162156,227.67,227.51,14.77722156]
[1733214189255,3.5715,227.69,227.54,12.24162156]
[1733214189256,1.376,227.69,227.54,12.24162156]
[1733214189264,2.36,227.68,227.57,12.24162156]
[1733214189281,1.376,227.69,227.6,12.24162156]
[1733214189296,2.36,227.7,227.61,1.09914558]
[1733214189310,2.36,227.7,227.57,12.24162156]
[1733214189318,2.36,227.7,227.58,1.09917248]
[1733214189349,2.36,227.7,227.59,1.09917248]
[1733214189358,14.60162156,227.7,227.63,2.1959]
[1733214189397,14.60162156,227.7,227.57,12.24162156]
[1733214189741,14.60162156,227.7,227.64,2.1958]
[1733214190735,14.60162156,227.7,227.57,12.24162156]
[1733214193952,14.60162156,227.7,227.65,2.1957]
[1733214193965,14.60162156,227.7,227.57,12.24162156]
[1733214193990,2.36,227.7,227.66,2.1956]
[1733214193997,2.36,227.7,227.57,12.24162156]
[1733214194032,2.36,227.7,227.67,2.1956]
[1733214194101,2.36,227.7,227.68,2.1955]
[1733214194168,1.3855,227.73,227.6,12.24162156]
[1733214194294,2.36,227.71,227.69,2.1953]
[1733214195197,2.36,227.71,227.6,12.24162156]
[1733214195399,2.36,227.71,227.7,2.1953]
[1733214197054,2.36,227.71,227.67,2.1955]
[1733214197204,12.24162156,227.7,227.67,2.1955]
[1733214197398,2.1954,227.69,227.6,2.1962]
[1733214199818,12.24162156,227.67,227.54,12.24162156]
[1733214199856,12.24162156,227.67,227.64,2.1958]
[1733214199863,12.24162156,227.67,227.54,12.24162156]
[1733214199869,12.24162156,227.67,227.52,49.80495853]
[1733214199881,12.24162156,227.64,227.53,1.09932694]
[1733214199890,2.36,227.63,227.52,49.80495853]
[1733214199917,2.36,227.63,227.51,1.2714]
[1733214200401,4.556,227.63,227.56,2.1965]
[1733214200597,2.36,227.63,227.51,1.2714]
[1733214202368,2.1961,227.62,227.55,2.1967]
[1733214203067,2.1961,227.62,227.48,12.24162156]
[1733214203086,2.1963,227.6,227.53,2.1969]
[1733214203098,12.24162156,227.61,227.45,13.53772156]
[1733214203109,12.24162156,227.61,227.46,1.09961961]
[1733214203123,12.24162156,227.58,227.49,2.1972]
[1733214203137,12.24162156,227.55,227.39,12.24162156]
[1733214205910,12.24162156,227.52,227.4,2.8595145]
[1733214205922,12.24162156,227.52,227.41,1.09981327]
[1733214205923,2.36,227.51,227.41,1.09981327]
[1733214205948,2.36,227.51,227.39,12.24162156]
[1733214205954,2.36,227.51,227.47,2.1975]
[1733214205973,2.36,227.51,227.39,12.24162156]
[1733214206042,2.36,227.51,227.42,12.24162156]
[1733214206052,2.36,227.51,227.5,2.1972]
[1733214206128,2.36,227.54,227.45,12.24162156]
[1733214206312,2.36,227.54,227.51,2.1971]
[1733214206611,2.36,227.54,227.45,12.24162156]
[1733214208862,2.36,227.54,227.53,2.1969]
[1733214208888,1.3912,227.6,227.55,2.1967]
[1733214208908,1.3912,227.6,227.48,12.24162156]
[1733214208909,2.36,227.59,227.48,12.24162156]
[1733214211734,2.36,227.59,227.49,1.3944]
[1733214211782,13.56842156,227.64,227.51,12.24162156]
[1733214211788,2.36,227.62,227.51,12.24162156]
[1733214211797,2.36,227.63,227.54,12.24162156]
[1733214211813,2.36,227.63,227.6,2.1962]
[1733214211910,2.36,227.63,227.56,2.1966]
[1733214212111,2.36,227.63,227.54,12.24162156]
[1733214212811,2.36,227.63,227.62,2.196]
[1733214214815,2.36,227.63,227.59,2.1963]
[1733214214839,2.36,227.63,227.53,2.36]
[1733214215111,2.36,227.63,227.61,2.1961]
[1733214217776,1.3417,227.69,227.57,12.24162156]
[1733214217801,1.3417,227.69,227.62,2.196]
[1733214217802,2.36,227.67,227.62,2.196]
[1733214217807,2.36,227.67,227.54,12.24162156]
[1733214217818,2.36,227.67,227.57,2.1964]
[1733214217828,14.60162156,227.67,227.53,2.36]
[1733214217845,14.60162156,227.67,227.52,12.24162156]
[1733214217853,16.79722156,227.67,227.59,2.1963]
[1733214217863,14.60162156,227.67,227.52,12.24162156]
[1733214217880,14.60162156,227.67,227.59,2.1963]
[1733214218019,14.60162156,227.67,227.6,2.1962]
[1733214218818,14.60162156,227.67,227.52,12.24162156]
[1733214218819,2.1957,227.66,227.59,2.1963]
[1733214219216,14.60162156,227.67,227.52,12.24162156]
[1733214219417,16.79722156,227.67,227.52,12.24162156]
[1733214220228,1.3232,227.66,227.52,12.24162156]
[1733214221012,3.5189,227.66,227.52,12.24162156]
[1733214221034,3.5189,227.66,227.59,2.1963]
[1733214221041,1.3232,227.66,227.52,12.24162156]
[1733214223889,1.3232,227.66,227.56,2.1966]
[1733214223899,1.3232,227.66,227.52,12.24162156]
[1733214223921,1.3232,227.66,227.56,2.1966]
[1733214223943,1.3232,227.66,227.52,12.24162156]
[1733214223980,1.3232,227.66,227.61,2.1961]
[1733214224719,1.3232,227.66,227.59,2.1963]
[1733214224720,12.24162156,227.64,227.59,2.1963]
[1733214225823,12.24162156,227.64,227.6,2.1962]
[1733214232302,2.1961,227.62,227.57,2.1965]
[1733214232382,14.60162156,227.61,227.49,1.3944]
[1733214232389,12.24162156,227.58,227.49,1.3944]
[1733214232397,2.36,227.57,227.49,1.3944]
[1733214232447,2.36,227.57,227.46,1.392]
[1733214232479,2.36,227.57,227.47,1.2631]
[1733214234063,1.3232,227.66,227.56,2.1966]
[1733214234074,12.24162156,227.64,227.56,2.1966]
[1733214234117,14.43752156,227.64,227.56,2.1966]
[1733214234132,14.43752156,227.64,227.57,2.1965]
[1733214236836,12.24162156,227.64,227.47,1.2631]
[1733214236855,12.24162156,227.64,227.58,2.1964]
[1733214236894,12.24162156,227.64,227.59,2.1963]
[1733214236908,12.24162156,227.64,227.49,12.24162156]
[1733214236914,4.5558,227.65,227.53,2.1968]
[1733214236915,2.36,227.65,227.53,2.1968]
[1733214236972,2.36,227.65,227.49,12.24162156]
[1733214238233,12.24162156,227.64,227.49,12.24162156]
[1733214240502,12.24162156,227.64,227.56,2.1966]
[1733214240517,12.24162156,227.61,227.48,2.36]
[1733214240533,12.24162156,227.61,227.47,1.2631]
[1733214243341,12.24162156,227.61,227.54,2.1968]
[1733214243348,12.24162156,227.61,227.47,1.2631]
[1733214243371,12.24162156,227.64,227.49,12.24162156]
[1733214243387,2.36,227.63,227.52,12.24162156]
[1733214243393,2.36,227.62,227.52,12.24162156]
[1733214243404,2.36,227.64,227.52,12.24162156]
[1733214243414,45.74,227.8,227.55,12.24162156]
[1733214243415,2.36,227.65,227.55,12.24162156]
[1733214243528,2.36,227.65,227.64,2.1959]
[1733214243826,2.36,227.69,227.61,12.24162156]
[1733214244030,2.36,227.69,227.58,12.24162156]
[1733214244640,2.36,227.69,227.65,2.1957]
[1733214246981,2.36,227.69,227.66,2.1957]
[1733214247015,2.36,227.69,227.58,12.24162156]
[1733214249872,2.36,227.69,227.65,2.1958]
[1733214249907,2.36,227.69,227.58,12.24162156]
[1733214249926,2.36,227.69,227.59,1.09909745]
[1733214249934,2.36,227.69,227.58,12.24162156]
[1733214249941,2.36,227.69,227.68,2.1955]
[1733214249963,2.34,227.72,227.64,12.24162156]
[1733214250005,2.34,227.72,227.71,2.1952]
[1733214250236,2.34,227.77,227.67,12.24162156]
[1733214250538,2.34,227.77,227.75,2.1947]
[1733214250745,1.2948,227.8,227.67,12.24162156]
[1733214251039,2.34,227.79,227.78,2.1945]
[1733214252159,2.34,227.79,227.67,14.58162156]
[1733214253000,12.24162156,227.84,227.7,12.24162156]
[1733214253019,45.14009486,227.89,227.7,12.24162156]
[1733214253020,2.34,227.83,227.7,12.24162156]
[1733214253032,2.34,227.83,227.67,2.34]
[1733214253033,2.34,227.83,227.73,12.24162156]
[1733214255880,2.34,227.83,227.82,2.1941]
[1733214256105,2.34,227.83,227.8,2.1943]
[1733214256447,2.34,227.83,227.7,12.24162156]
[1733214256865,2.34,227.83,227.79,2.1944]
[1733214257684,12.24162156,227.81,227.68,1.372]
[1733214258288,2.34,227.83,227.68,13.61362156]
[1733214258333,2.34,227.83,227.71,12.24162156]
[1733214261208,2.34,227.83,227.81,2.1942]
[1733214261237,2.34,227.83,227.71,12.24162156]
[1733214261248,2.34,227.83,227.81,2.1943]
[1733214261259,2.34,227.83,227.71,12.24162156]
[1733214261272,2.34,227.83,227.68,1.372]
[1733214261273,12.24162156,227.81,227.68,1.372]
[1733214261281,12.24162156,227.78,227.68,1.372]
[1733214261288,12.24162156,227.78,227.72,2.1951]
[1733214261289,2.34,227.77,227.72,2.1951]
[1733214261300,2.34,227.77,227.7,2.1953]
[1733214261307,12.24162156,227.74,227.7,2.1953]
[1733214261403,12.24162156,227.74,227.62,1.2913]
[1733214261460,12.24162156,227.74,227.61,1.3498]
[1733214261461,12.24162156,227.74,227.7,2.1954]
[1733214262455,15.97032156,227.77,227.71,2.1953]
[1733214264050,15.97032156,227.77,227.62,12.24162156]
[1733214264068,15.97032156,227.77,227.73,2.1951]
[1733214264110,15.97032156,227.77,227.62,12.24162156]
[1733214264166,15.97032156,227.77,227.71,2.1953]
[1733214267196,15.97032156,227.77,227.62,12.24162156]
[1733214267236,15.97032156,227.77,227.61,1.3498]
[1733214267237,3.7287,227.77,227.76,2.1948]
[1733214267244,2.34,227.77,227.76,2.1948]
[1733214267273,2.34,227.81,227.8,2.1944]
[1733214267288,2.34,227.82,227.8,2.1944]
[1733214267321,2.34,227.82,227.79,2.1945]
[1733214267330,2.34,227.82,227.71,12.24162156]
[1733214267417,2.34,227.82,227.74,2.195]
[1733214267557,2.34,227.82,227.71,12.24162156]
[1733214267959,2.34,227.82,227.71,13.59822156]
[1733214268156,12.24162156,227.8,227.7,1.3819]